lending/lending_fUSD_20250121
["ID","MTS","AMOUNT","RATE_DAILY","PERIOD"]
[349872307,1737472249194,-151.0,0.000209,2]
[349872308,1737472249204,-151.0,0.000209,2]
[349872309,1737472249215,-266.590664,0.000209,2]
[349872310,1737472249225,-151.0,0.000209,2]
[349872311,1737472249234,-151.0,0.000209,2]
[349872312,1737472249244,-643.578476,0.000209,2]
[349872313,1737472249254,-643.578476,0.000209,2]
[349872314,1737472249264,-819.277426,0.000209,2]
[349872315,1737472249275,-184.846339,0.000209,2]
[349872316,1737472249290,-184.846339,0.000209,2]
[349872317,1737472249300,-151.0,0.000209,2]
[349872318,1737472249311,-151.0,0.000209,2]
[349872319,1737472249320,-151.0,0.000209,2]
[349872320,1737472249331,-151.0,0.000209,2]
[349872321,1737472249340,-230.05443607,0.000209,2]
[349872322,1737472249351,-151.0,0.000209,2]
[349872323,1737472249361,-151.0,0.000209,2]
[349872324,1737472249371,-382.58926786,0.000209,2]
[349872325,1737472249382,-151.0,0.000209,2]
[349872326,1737472249392,-161.384238,0.000209,2]
[349872327,1737472249403,-151.0,0.000209,2]
[349872328,1737472249413,-151.0,0.000209,2]
[349872329,1737472249424,-7720.13171515,0.000209,2]
[349872330,1737472249435,-160.25793076,0.000209,2]
[349872331,1737472249445,-151.0,0.000209,2]
[349872332,1737472249456,-151.42155941,0.000209,3]
[349872333,1737472249467,-284.34393,0.000209,2]
[349872334,1737472249478,-284.34393,0.000209,2]
[349872335,1737472249489,-194.32161878,0.000209,2]
[349872336,1737472249499,-151.0,0.000209,2]
[349872337,1737472249510,-151.0,0.000209,2]
[349872338,1737472249520,-2816.26755529,0.000209,2]
[349872339,1737472249533,-7409.77164568,0.000209,2]
[349872340,1737472249545,-677.42358856,0.00020902,2]
[349872341,1737472249556,-200.0,0.00020905,2]
[349872342,1737472249567,-302.50622409,0.00020908,2]
[349872343,1737472249578,-160.15226,0.00020912,2]
[349872344,1737472249588,-949.79335544,0.00020916,2]
[349872345,1737472249599,-431.59092816,0.00020916,2]
[349872346,1737472249609,-152.0,0.0002092,3]
[349872347,1737472249619,-207.0,0.0002092,2]
[349872348,1737472249629,-205.0,0.0002092,2]
[349872349,1737472249640,-500.0,0.00020924,2]
[349872350,1737472249650,-307.98621702,0.00020924,2]
[349872351,1737472249663,-302.50622409,0.00020926,2]
[349872352,1737472249673,-200.0,0.00020929,2]
[349872353,1737472249683,-150.0,0.00020931,2]
[349872354,1737472249693,-2816.26755523,0.00020934,2]
[349872355,1737472249703,-234.17638637,0.00020935,2]
[349872356,1737472249714,-3488.12498607,0.00020938,2]
[349872357,1737472249726,-949.79335544,0.00020945,2]
[349872358,1737472249736,-677.42358856,0.00020947,2]
[349872359,1737472249747,-150.0,0.00020947,2]
[349872360,1737472249758,-307.98621702,0.00020948,2]
[349872361,1737472249769,-150.0,0.00020949,2]
[349872362,1737472249784,-25112.0,0.00020959,2]
[349872363,1737472249794,-2066.0,0.00020959,2]
[349872364,1737472249804,-1171.0,0.00020959,2]
[349872365,1737472249815,-791.69,0.00020963,2]
[349872366,1737472249826,-597.267398,0.00020963,2]
[349872367,1737472249836,-241.4,0.00020963,2]
[349872368,1737472249847,-823.62,0.00020963,2]
[349872369,1737472249858,-500.0,0.00020963,2]
[349872370,1737472249869,-1957.25,0.00020963,2]
[349872371,1737472249879,-500.0,0.00020963,2]
[349872372,1737472249890,-445.357376,0.00020963,2]
[349872373,1737472249900,-841.49,0.00020963,2]
[349872374,1737472249911,-500.0,0.00020963,2]
[349872375,1737472249922,-1641.18,0.00020963,2]
[349872376,1737472249932,-823.46,0.00020963,2]
[349872377,1737472249941,-1914.24,0.00020963,2]
[349872378,1737472249951,-1013.54,0.00020963,2]
[349872379,1737472249962,-500.0,0.00020963,2]
[349872380,1737472249973,-1885.44,0.00020963,2]
[349872381,1737472249983,-1055.99,0.00020963,2]
[349872382,1737472249993,-1420.99,0.00020963,2]
[349872383,1737472250003,-726.23,0.00020963,2]
[349872384,1737472250013,-1713.8,0.00020963,2]
[349872385,1737472250023,-1537.16,0.00020963,2]
[349872386,1737472250037,-557.54,0.00020963,2]
[349872387,1737472250048,-643.67,0.00020963,2]
[349872388,1737472250058,-832.29,0.00020963,2]
[349872389,1737472250069,-500.0,0.00020963,2]
[349872390,1737472250079,-1568.78,0.00020963,2]
[349872391,1737472250090,-2343.23,0.00020963,2]
[349872392,1737472250100,-1051.92,0.00020963,2]
[349872393,1737472250110,-883.81,0.00020963,2]
[349872394,1737472250123,-3022.12,0.00020963,2]
[349872395,1737472250134,-1168.38,0.00020963,2]
[349872396,1737472250144,-1863.81,0.00020963,2]
[349872397,1737472250154,-500.0,0.00020963,2]
[349872398,1737472250165,-1819.41,0.00020963,2]
[349872399,1737472250175,-1009.79,0.00020963,2]
[349872400,1737472250184,-1600.19,0.00020963,2]
[349872401,1737472250195,-592.88,0.00020963,2]
[349872402,1737472250204,-155.659928,0.00020963,2]
[349872403,1737472250214,-1226.59,0.00020963,2]
[349872404,1737472250224,-1170.78862555,0.00020963,5]
[349872405,1737472250233,-500.0,0.00020963,2]
[349872406,1737472250243,-6482.85,0.00020963,2]
[349872407,1737472250253,-744.28,0.00020963,2]
[349872408,1737472250264,-1038.48,0.00020963,2]
[349872409,1737472250274,-2503.09,0.00020963,2]
[349872410,1737472250288,-2652.96,0.00020963,2]
[349872411,1737472250298,-1140.98,0.00020963,2]
[349872412,1737472250309,-635.18,0.00020963,2]
[349872413,1737472250319,-830.17,0.00020963,2]
[349872414,1737472250329,-151.234075,0.00020963,2]
[349872415,1737472250339,-683.23,0.00020963,2]
[349872416,1737472250349,-2263.39,0.00020963,2]
[349872417,1737472250359,-500.0,0.00020963,2]
[349872418,1737472250369,-500.0,0.00020963,2]
[349872419,1737472250378,-1012.09,0.00020963,2]
[349872420,1737472250388,-500.0,0.00020963,2]
[349872421,1737472250398,-1601.95,0.00020963,2]
[349872422,1737472250407,-500.0,0.00020963,2]
[349872423,1737472250417,-691.32,0.00020963,2]
[349872424,1737472250427,-500.0,0.00020963,2]
[349872425,1737472250437,-500.0,0.00020963,2]
[349872426,1737472250447,-500.0,0.00020963,2]
[349872427,1737472250457,-2214.68,0.00020963,2]
[349872428,1737472250467,-500.0,0.00020963,2]
[349872429,1737472250476,-2156.78,0.00020963,2]
[349872430,1737472250486,-522.66,0.00020963,2]
[349872431,1737472250496,-500.0,0.00020963,2]
[349872432,1737472250506,-500.0,0.00020963,2]
[349872433,1737472250516,-500.0,0.00020964,2]
[349872434,1737472250525,-500.0,0.00020964,2]
[349872435,1737472250537,-500.0,0.00020964,2]
[349872436,1737472250547,-500.0,0.00020964,2]
[349872437,1737472250557,-500.0,0.00020964,2]
[349872438,1737472250567,-500.0,0.00020964,2]
[349872439,1737472250578,-500.0,0.00020964,2]
[349872440,1737472250588,-500.0,0.00020964,2]
[349872441,1737472250599,-500.0,0.00020964,2]
[349872442,1737472250609,-500.0,0.00020964,2]
[349872443,1737472250619,-500.0,0.00020964,2]
[349872444,1737472250629,-500.0,0.00020964,2]
[349872445,1737472250649,-500.0,0.00020964,2]
[349872446,1737472250660,-500.0,0.00020964,2]
[349872447,1737472250670,-275.84039049,0.00020964,2]
[349872448,1737472250680,-500.0,0.00020964,2]
[349872449,1737472250690,-500.0,0.00020964,2]
[349872450,1737472250701,-500.0,0.00020964,2]
[349872451,1737472250710,-500.0,0.00020964,2]
[349872452,1737472250720,-500.0,0.00020964,2]
[349872453,1737472250730,-500.0,0.00020964,2]
[349872454,1737472250740,-500.0,0.00020964,2]
[349872455,1737472250750,-500.0,0.00020964,2]
[349872456,1737472250760,-353.13062737,0.00020964,2]
[349872457,1737472250770,-500.0,0.00020964,2]
[349872458,1737472250783,-500.0,0.00020964,2]
[349872459,1737472250793,-500.0,0.00020964,2]
[349872460,1737472250803,-500.0,0.00020964,2]
[349872461,1737472250813,-200.0,0.00020964,2]
[349872462,1737472250823,-500.0,0.00020964,2]
[349872463,1737472250833,-544.90542316,0.00020964,2]
[349872464,1737472250843,-500.0,0.00020964,2]
[349872465,1737472250853,-500.0,0.00020964,2]
[349872466,1737472250863,-259.41177455,0.00020964,2]
[349872467,1737472250873,-500.0,0.00020964,2]
[349872468,1737472250882,-500.0,0.00020964,2]
[349872469,1737472250892,-500.0,0.00020964,2]
[349872470,1737472250903,-500.0,0.00020964,2]
[349872471,1737472250913,-500.0,0.00020964,2]
[349872472,1737472250923,-359.5502578,0.00020964,2]
[349872473,1737472250932,-500.0,0.00020964,2]
[349872474,1737472250942,-313.40967722,0.00020964,2]
[349872475,1737472250952,-500.0,0.00020964,2]
[349872476,1737472250962,-500.0,0.00020964,2]
[349872477,1737472250972,-500.0,0.00020964,2]
[349872478,1737472250982,-500.0,0.00020964,2]
[349872479,1737472250992,-500.0,0.00020964,2]
[349872480,1737472251001,-500.0,0.00020964,2]
[349872481,1737472251011,-500.0,0.00020964,2]
[349872482,1737472251021,-500.0,0.00020964,2]
[349872483,1737472251031,-500.0,0.00020964,2]
[349872484,1737472251041,-500.0,0.00020964,2]
[349872485,1737472251050,-500.0,0.00020964,2]
[349872486,1737472251060,-270.7196313,0.00020964,2]
[349872487,1737472251069,-500.0,0.00020964,2]
[349872488,1737472251079,-500.0,0.00020964,2]
[349872489,1737472251088,-500.0,0.00020964,2]
[349872490,1737472251098,-500.0,0.00020964,2]
[349872491,1737472251107,-500.0,0.00020964,2]
[349872492,1737472251117,-500.0,0.00020964,2]
[349872493,1737472251127,-500.0,0.00020964,2]
[349872494,1737472251137,-500.0,0.00020964,2]
[349872495,1737472251147,-500.0,0.00020964,2]
[349872496,1737472251156,-500.0,0.00020964,2]
[349872497,1737472251166,-500.0,0.00020964,2]
[349872498,1737472251175,-500.0,0.00020964,2]
[349872499,1737472251185,-500.0,0.00020964,2]
[349872500,1737472251195,-500.0,0.00020964,2]
[349872501,1737472251204,-500.0,0.00020964,2]
[349872502,1737472251214,-500.0,0.00020964,2]
[349872503,1737472251224,-500.0,0.00020964,2]
[349872504,1737472251233,-640.28,0.00020964,2]
[349872505,1737472251244,-510.40028932,0.00020964,2]
[349872506,1737472251253,-500.0,0.00020964,2]
[349872507,1737472251263,-500.0,0.00020964,2]
[349872508,1737472251272,-684.26,0.00020964,2]
[349872509,1737472251284,-500.0,0.00020964,2]
[349872510,1737472251294,-500.0,0.00020964,2]
[349872511,1737472251303,-500.0,0.00020964,2]
[349872512,1737472251312,-1662.68,0.00020964,2]
[349872513,1737472251322,-747.48,0.00020964,2]
[349872514,1737472251331,-500.0,0.00020964,2]
[349872515,1737472251340,-562.9,0.00020964,2]
[349872516,1737472251349,-500.0,0.00020964,2]
[349872517,1737472251359,-500.0,0.00020964,2]
[349872518,1737472251368,-500.0,0.00020964,2]
[349872519,1737472251377,-570.71,0.00020964,2]
[349872520,1737472251387,-500.0,0.00020964,2]
[349872521,1737472251396,-1414.34,0.00020964,2]
[349872522,1737472251406,-500.0,0.00020964,2]
[349872523,1737472251415,-500.0,0.00020964,2]
[349872524,1737472251424,-729.89,0.00020964,2]
[349872525,1737472251433,-500.0,0.00020964,2]
[349872526,1737472251442,-550.57,0.00020964,2]
[349872527,1737472251451,-500.0,0.00020964,2]
[349872528,1737472251460,-1565.96,0.00020964,2]
[349872529,1737472251470,-934.73,0.00020964,2]
[349872530,1737472251479,-500.0,0.00020964,2]
[349872531,1737472251489,-500.0,0.00020964,2]
[349872532,1737472251498,-667.13,0.00020964,2]
[349872533,1737472251507,-591.74,0.00020964,2]
[349872534,1737472251516,-500.0,0.00020964,2]
[349872535,1737472251526,-500.0,0.00020964,2]
[349872536,1737472251538,-500.0,0.00020964,2]
[349872537,1737472251547,-1973.87,0.00020964,2]
[349872538,1737472251557,-500.0,0.00020964,2]
[349872539,1737472251566,-500.0,0.00020964,2]
[349872540,1737472251576,-500.0,0.00020964,2]
[349872541,1737472251586,-500.0,0.00020964,2]
[349872542,1737472251595,-778.42,0.00020964,2]
[349872543,1737472251605,-647.57505241,0.00020964,2]
[349872544,1737472251614,-1076.98,0.00020964,2]
[349872545,1737472251623,-500.0,0.00020964,2]
[349872546,1737472251634,-1380.57,0.00020964,2]
[349872547,1737472251646,-500.0,0.00020964,2]
[349872548,1737472251656,-500.0,0.00020964,2]
[349872549,1737472251665,-500.0,0.00020964,2]
[349872550,1737472251675,-500.0,0.00020964,2]
[349872551,1737472251686,-525.29,0.00020964,2]
[349872552,1737472251696,-500.0,0.00020964,2]
[349872553,1737472251705,-689.59,0.00020964,2]
[349872554,1737472251715,-500.0,0.00020964,2]
[349872555,1737472251726,-500.0,0.00020964,2]
[349872556,1737472251736,-533.93,0.00020964,2]
[349872557,1737472251745,-1710.22,0.00020964,2]
[349872558,1737472251754,-609.53816612,0.00020964,2]
[349872559,1737472251764,-500.0,0.00020964,2]
[349872560,1737472251773,-500.0,0.00020964,2]
[349872561,1737472251785,-500.0,0.00020964,2]
[349872562,1737472251794,-500.0,0.00020964,2]
[349872563,1737472251804,-1957.17,0.00020964,2]
[349872564,1737472251813,-500.0,0.00020964,2]
[349872565,1737472251823,-500.0,0.00020964,2]
[349872566,1737472251832,-1448.24,0.00020964,2]
[349872567,1737472251842,-618.13956057,0.00020964,2]
[349872568,1737472251851,-500.0,0.00020964,2]
[349872569,1737472251862,-500.0,0.00020964,2]
[349872570,1737472251871,-500.0,0.00020964,2]
[349872571,1737472251881,-500.0,0.00020964,2]
[349872572,1737472251891,-4700.1,0.00020964,2]
[349872573,1737472251900,-500.0,0.00020964,2]
[349872574,1737472251910,-500.0,0.00020964,2]
[349872575,1737472251920,-500.0,0.00020964,2]
[349872576,1737472251930,-500.0,0.00020964,2]
[349872577,1737472251940,-500.0,0.00020964,2]
[349872578,1737472251950,-500.0,0.00020964,2]
[349872579,1737472251960,-666.49,0.00020964,2]
[349872580,1737472251970,-500.0,0.00020964,2]
[349872581,1737472251980,-598.71,0.00020964,2]
[349872582,1737472251990,-500.0,0.00020964,2]
[349872583,1737472251999,-601.04,0.00020964,2]
[349872584,1737472252009,-500.0,0.00020964,2]
[349872585,1737472252019,-500.0,0.00020964,2]
[349872586,1737472252029,-500.0,0.00020964,2]
[349872587,1737472252040,-500.0,0.00020964,2]
[349872588,1737472252050,-500.0,0.00020964,2]
[349872589,1737472252059,-4362.29,0.00020964,2]
[349872590,1737472252068,-500.0,0.00020964,2]
[349872591,1737472252078,-500.0,0.00020964,2]
[349872592,1737472252086,-500.0,0.00020964,2]
[349872593,1737472252095,-500.0,0.00020964,2]
[349872594,1737472252251,-500.0,0.00020965,2]
[349872595,1737472252261,-500.0,0.00020965,2]
[349872596,1737472252271,-500.0,0.00020965,2]
[349872597,1737472252283,-500.0,0.00020965,2]
[349872598,1737472252292,-500.0,0.00020965,2]
[349872599,1737472252302,-500.0,0.00020965,2]
[349872600,1737472252312,-500.0,0.00020965,2]
[349872601,1737472252321,-500.0,0.00020965,2]
[349872602,1737472252331,-291.84676736,0.00020965,2]
[349872603,1737472252340,-500.0,0.00020965,2]
[349872604,1737472252350,-500.0,0.00020965,2]
[349872605,1737472252359,-595.71,0.00020965,2]
[349872606,1737472252368,-500.0,0.00020965,2]
[349872607,1737472252378,-500.0,0.00020965,2]
[349872608,1737472252388,-500.0,0.00020965,2]
[349872609,1737472252397,-500.0,0.00020965,2]
[349872610,1737472252407,-500.0,0.00020965,2]
[349872611,1737472252418,-500.0,0.00020965,2]
[349872612,1737472252427,-500.0,0.00020965,2]
[349872613,1737472252437,-500.0,0.00020965,2]
[349872614,1737472252446,-500.0,0.00020965,2]
[349872615,1737472252455,-984.81,0.00020965,2]
[349872616,1737472252464,-362.58,0.00020965,2]
[349872617,1737472252474,-500.0,0.00020965,2]
[349872618,1737472252483,-583.89,0.00020965,2]
[349872619,1737472252492,-559.85,0.00020965,2]
[349872620,1737472252502,-1260.45,0.00020965,2]
[349872621,1737472252511,-590.98,0.00020965,2]
[349872622,1737472252520,-5314.51,0.00020965,2]
[349872623,1737472252531,-789.98,0.00020965,2]
[349872624,1737472252540,-500.0,0.00020965,2]
[349872625,1737472252563,-1044.78,0.00020965,2]
[349872626,1737472252573,-3321.03,0.00020965,2]
[349872627,1737472252583,-508.08,0.00020965,2]
[349872628,1737472252592,-819.277426,0.00020965,2]
[349872629,1737472252602,-710.97,0.00020965,2]
[349872630,1737472252611,-500.0,0.00020965,2]
[349872631,1737472252621,-184.846339,0.00020965,2]
[349872632,1737472252631,-184.846339,0.00020965,2]
[349872633,1737472252641,-509.04,0.00020965,2]
[349872634,1737472252651,-151.0,0.00020965,2]
[349872635,1737472252662,-872.91,0.00020965,2]
[349872636,1737472252672,-151.0,0.00020965,2]
[349872637,1737472252682,-1103.49,0.00020965,2]
[349872638,1737472252691,-151.0,0.00020965,2]
[349872639,1737472252702,-500.0,0.00020965,2]
[349872640,1737472252712,-751.11,0.00020965,2]
[349872641,1737472252721,-1130.19,0.00020965,2]
[349872642,1737472252732,-151.0,0.00020965,2]
[349872643,1737472252742,-151.0,0.00020965,2]
[349872644,1737472252751,-172.55151,0.00020965,2]
[349872645,1737472252762,-1000.0,0.00020965,2]
[349872646,1737472252771,-1099.39,0.00020965,2]
[349872647,1737472252782,-518.45,0.00020965,2]
[349872648,1737472252792,-151.0,0.00020965,2]
[349872649,1737472252801,-1092.04,0.00020965,2]
[349872650,1737472252811,-151.0,0.00020965,2]
[349872651,1737472252820,-1390.84,0.00020965,2]
[349872652,1737472252830,-151.0,0.00020965,2]
[349872653,1737472252840,-284.34393,0.00020965,2]
[349872654,1737472252850,-284.34393,0.00020965,2]
[349872655,1737472252860,-151.0,0.00020965,2]
[349872656,1737472252874,-151.0,0.00020965,2]
[349872657,1737472252884,-500.0,0.00020966,2]
[349872658,1737472252895,-500.0,0.00020966,2]
[349872659,1737472252904,-500.0,0.00020966,2]
[349872660,1737472252914,-500.0,0.00020966,2]
[349872661,1737472252924,-500.0,0.00020966,2]
[349872662,1737472252933,-500.0,0.00020966,2]
[349872663,1737472252943,-500.0,0.00020966,2]
[349872664,1737472252953,-500.0,0.00020966,2]
[349872665,1737472252963,-500.0,0.00020966,2]
[349872666,1737472252972,-500.0,0.00020966,2]
[349872667,1737472252983,-500.0,0.00020966,2]
[349872668,1737472252992,-500.0,0.00020966,2]
[349872669,1737472253002,-500.0,0.00020966,2]
[349872670,1737472253011,-500.0,0.00020966,2]
[349872671,1737472253021,-500.0,0.00020966,2]
[349872672,1737472253030,-500.0,0.00020966,2]
[349872673,1737472253041,-500.0,0.00020966,2]
[349872674,1737472253051,-459.4201209,0.00020966,2]
[349872675,1737472253061,-152.919312,0.00020966,2]
[349872676,1737472253071,-151.0,0.00020966,2]
[349872677,1737472253081,-643.578476,0.00020966,2]
[349872678,1737472253091,-643.578476,0.00020966,2]
[349872679,1737472253100,-2816.26755523,0.00020969,2]
[349872680,1737472253110,-731.749374,0.00020969,2]
[349872681,1737472253119,-731.749374,0.00020969,2]
[349872682,1737472253130,-150.0,0.0002097,2]
[349872683,1737472253139,-152.02777672,0.00020973,2]
[349872684,1737472253149,-161.82668815,0.00020973,2]
[349872685,1737472253159,-500.0,0.00020973,2]
[349872686,1737472253170,-150.0,0.00020983,2]
[349872687,1737472253180,-319.07029373,0.00020983,2]
[349872688,1737472253190,-151.0,0.00020989,2]
[349872689,1737472253199,-153.059533,0.00020989,2]
[349872690,1737472253209,-151.0,0.00020989,2]
[349872691,1737472253219,-151.0,0.00020989,2]
[349872692,1737472253228,-151.0,0.00020989,2]
[349872693,1737472253238,-151.0,0.00020989,2]
[349872694,1737472253247,-151.0,0.00020989,2]
[349872695,1737472253256,-151.0,0.00020989,2]
[349872696,1737472253266,-151.0,0.00020989,2]
[349872697,1737472253275,-886.210765,0.00020989,2]
[349872698,1737472253287,-886.210765,0.00020989,2]
[349872699,1737472253297,-151.0,0.00020989,2]
[349872700,1737472253306,-151.0,0.00020989,2]
[349872701,1737472253315,-151.0,0.00020989,2]
[349872702,1737472253325,-151.0,0.00020989,2]
[349872703,1737472253335,-151.0,0.00020989,2]
[349872704,1737472253345,-151.0,0.00020989,2]
[349872705,1737472253355,-238.597804,0.00020989,2]
[349872706,1737472253365,-238.597804,0.00020989,2]
[349872707,1737472253375,-151.0,0.00020989,2]
[349872708,1737472253385,-151.0,0.00020989,2]
[349872709,1737472253395,-151.0,0.00020989,2]
[349872710,1737472253405,-430.753738,0.00020989,2]
[349872711,1737472253414,-430.753738,0.00020989,2]
[349872712,1737472253423,-213.054702,0.00020989,2]
[349872713,1737472253433,-213.054702,0.00020989,2]
[349872714,1737472253443,-925.268711,0.00020989,2]
[349872715,1737472253452,-151.0,0.00020989,2]
[349872716,1737472253462,-925.268711,0.00020989,2]
[349872717,1737472253471,-151.0,0.00020989,2]
[349872718,1737472253481,-151.0,0.00020989,2]
[349872719,1737472253491,-999.0,0.00020989,2]
[349872720,1737472253501,-1061.29224117,0.0002099,5]
[349872721,1737472253511,-151.0,0.0002099,2]
[349872722,1737472253520,-151.0,0.0002099,2]
[349872723,1737472253530,-257.068778,0.0002099,2]
[349872724,1737472253544,-151.0,0.0002099,2]
[349872725,1737472253555,-151.0,0.0002099,2]
[349872726,1737472253565,-2548.66,0.00020997,2]
[349872727,1737472253574,-666.0,0.00020999,2]
[349872728,1737472253584,-666.0,0.00020999,2]
[349872729,1737472253594,-151.0,0.00020999,2]
[349872730,1737472253603,-151.0,0.00020999,2]
[349872731,1737472253612,-683.88,0.00020999,2]
[349872732,1737472253622,-329.40193736,0.00021,2]
[349872733,1737472253632,-1457018.3159865,0.00021,2]
[349872734,1737472253646,-351618.98609624,0.00021,15]
[349872735,1737472253665,-236300.04061048,0.00021,15]
[349872736,1737472253678,-13880.54347025,0.00021,15]
[349872737,1737472253690,-51827.5,0.00021,15]
[349872738,1737472253702,-20620.36479999,0.00021,15]
[349872739,1737472253714,-8143.88149726,0.00021,15]
[349872740,1737472253726,-3158.27562113,0.00021,15]
[349872741,1737472253746,-303.3786611,0.00020415,2]
[349872742,1737472253757,-196.6213389,0.00020415,2]
[349872743,1737472253767,-260.7046411,0.00021,15]
[349872744,1737472253778,-121958.75929051,0.00021,15]
[349872745,1737472254055,-353.526063,0.00019123,2]
[349872746,1737472254071,-263.258183,0.00019123,2]
[349872747,1737472254083,-260.175754,0.00019123,2]
[349872748,1737472254094,-495.43100901,0.00020315,2]
[349872749,1737472254130,-150.0,0.00019297,2]
[349872750,1737472254140,-2004.56899099,0.00020315,2]
[349872751,1737472254150,-150.0,0.00020321,2]
[349872752,1737472254159,-158.416042,0.00020415,2]
[349872753,1737472254168,-500.0,0.00020416,2]
[349872754,1737472254178,-500.0,0.00020416,2]
[349872755,1737472254187,-500.0,0.00020689,2]
[349872756,1737472254197,-500.0,0.0002069,2]
[349872757,1737472254206,-500.0,0.0002069,2]
[349872758,1737472254216,-500.0,0.00020963,2]
[349872759,1737472254225,-500.0,0.00020964,2]
[349872760,1737472254235,-500.0,0.00020964,2]
[349872761,1737472254245,-24565.79966701,0.00021,15]
[349872762,1737472254257,-327.8275,0.00021,15]
[349872763,1737472254268,-157339.61204325,0.00021,15]
[349872764,1737472254279,-31375.67290228,0.00021,15]
[349872765,1737472254294,-43067.63479191,0.00021,15]
[349872766,1737472254306,-57081.56024306,0.00021,15]
[349872767,1737472359299,4742.0,0.0002199,35]
[349872772,1737472479864,229.59,0.00019213,30]
[349872773,1737472480227,229.59,0.00021797,30]
[349872782,1737472832917,250.0,0.00024,120]
[349872783,1737472867969,500.0,0.00024,120]
[349872784,1737472899073,250.0,0.00024,120]
[349872785,1737472914101,10000.0,0.00024,120]
[349872786,1737472952068,5886.9,0.00022,30]
[349872787,1737473108011,26791.76,0.00012,2]
[349872788,1737473140961,158.74,0.00010137,2]
[349872791,1737473322097,202.0,0.0002,120]
[349872812,1737473432287,-365.41440012,0.000119,2]
[349872813,1737473432300,-449.00374955,0.000119,2]
[349872814,1737473432809,-288.25007609,0.000119,2]
[349872815,1737473432819,-150.0,0.00011999,2]
[349872816,1737473432828,-51393.39474251,0.00012,2]
[349872817,1737473432853,-5132.73448587,0.00012,2]
[349872818,1737473433043,-26345.62066399,0.00012,2]
[349872819,1737473433057,-4014.45255788,0.00012,2]
[349872820,1737473433069,-12032.27930257,0.00012,2]
[349872821,1737473433082,-269.47760681,0.00012,2]
[349872822,1737473433096,-1705.8,0.00012,2]
[349872823,1737473433154,-868.15032799,0.00012,2]
[349872824,1737473433214,-73819.99259049,0.00012,2]
[349872825,1737473433225,-1102.66822575,0.0001234,2]
[349872826,1737473433236,-1102.66822575,0.00012779,2]
[349872827,1737473433246,-2347.61648257,0.00012979,2]
[349872828,1737473433261,-547.64919002,0.00012979,2]
[349872829,1737473433271,-150.0,0.00013079,2]
[349872830,1737473433280,-2611.03418814,0.000166,2]
[349872831,1737473433290,-2611.03418797,0.000166,2]
[349872832,1737473433299,-2611.03418797,0.000166,2]
[349872833,1737473433309,-2611.03418797,0.000166,2]
[349872834,1737473433319,-2611.03418797,0.000166,2]
[349872835,1737473433329,-2611.03418797,0.000166,2]
[349872836,1737473433339,-2611.03418797,0.000166,2]
[349872837,1737473433349,-1724.57376947,0.000166,2]
[349872838,1737473433411,-886.4604185,0.000166,2]
[349872839,1737473433421,-1998.84161515,0.000166,2]
[349872853,1737473438190,-612.19257282,0.000166,2]